Workbook

Sheet Welcome
A1: ©2005 Seref, Ahuja, and Winston

Sheet HistData (hidden)
B6: Customer | C6: Number of Calls | D6: Unit Sales | E6: Profit / Sale | F6: Cost / Call | G6: Total Profit
B7: DELL | C7: 318 | D7: 1791 | E7: 20 | F7: 2 | G7: =D7*$E$8-C7*$F$8 -> 43185
B8: GATEWAY | C8: 326 | D8: 443 | E8: 25 | F8: 5 | G8: =D8*$E$9-C8*$F$9 -> 9211
B9: HP | C9: 325 | D9: 694 | E9: 23 | F9: 3 | G9: =D9*E9 -> 15962
B10: IBM | C10: 314 | D10: 574 | E10: 26 | F10: 6 | G10: =D10*E10 -> 14924
B11: MSFT | C11: 301 | D11: 1294 | E11: 29 | F11: 8 | G11: =D11*E11 -> 37526
B12: SONY | C12: 320 | D12: 1789 | E12: 20 | F12: 4 | G12: =D12*E12 -> 35780
G14: =SUM(HistRevenues) -> 156588

Sheet DemoData (hidden)
B6: Computer Products | I6: Unit Sales Estimates
B7: Customer | C7: Num Calls | D7: Unit Sales | E7: Rev/Sale | F7: Cost/Call | G7: Total Rev | I7: Customer | J7: 0.1 | K7: 0.5 | L7: -- | M7: 1.5 | N7: 10
B8: DELL | C8: 318 | D8: 1791 | E8: 20 | F8: 2 | G8: =D8*$E$8-C8*$F$8 -> 35184 | I8: DELL | J8: 500 | K8: 850 | L8: 1791 | M8: 2600 | N8: 4770
B9: GATEWAY | C9: 326 | D9: 443 | E9: 25 | F9: 5 | G9: =D9*$E$9-C9*$F$9 -> 9445 | I9: GATEWAY | J9: 150 | K9: 230 | L9: 443 | M9: 2000 | N9: 4890
B10: HP | C10: 325 | D10: 694 | E10: 23 | F10: 3 | G10: =D10*E10 -> 15962 | I10: HP | J10: 350 | K10: 450 | L10: 694 | M10: 2300 | N10: 4875
B11: IBM | C11: 314 | D11: 574 | E11: 26 | F11: 6 | G11: =D11*E11 -> 14924 | I11: IBM | J11: 200 | K11: 415 | L11: 574 | M11: 2100 | N11: 4710
B12: MSFT | C12: 301 | D12: 1294 | E12: 29 | F12: 8 | G12: =D12*E12 -> 37526 | I12: MSFT | J12: 430 | K12: 800 | L12: 1294 | M12: 2200 | N12: 4515
B13: SONY | C13: 320 | D13: 1789 | E13: 20 | F13: 4 | G13: =D13*E13 -> 35780 | I13: SONY | J13: 480 | K13: 880 | L13: 1789 | M13: 2640 | N13: 4800
B16: Cell Phone Plans | I16: Unit Sales Estimates
B17: Customer | C17: Num Calls | D17: Unit Sales | E17: Rev/Cust | F17: Cost/Call | G17: Total Rev | I17: Customer | J17: 0.1 | K17: 0.5 | L17: -- | M17: 1.5 | N17: 10
B18: ATT | C18: 310 | D18: 1357 | E18: 15 | F18: 2 | G18: =D18*E18 -> 20355 | I18: ATT | J18: 450 | K18: 750 | L18: 1357 | M18: 2000 | N18: 3500
B19: CINGULAR | C19: 338 | D19: 1624 | E19: 14 | F19: 2.3 | G19: =D19*E19 -> 22736 | I19: CINGULAR | J19: 550 | K19: 820 | L19: 1624 | M19: 2200 | N19: 4500
B20: TMOBILE | C20: 311 | D20: 1011 | E20: 16 | F20: 2.5 | G20: =D20*E20 -> 16176 | I20: TMOBILE | J20: 380 | K20: 630 | L20: 1011 | M20: 1600 | N20: 3000
B21: VERIZON | C21: 306 | D21: 414 | E21: 14 | F21: 2.8 | G21: =D21*E21 -> 5796 | I21: VERIZON | J21: 100 | K21: 300 | L21: 414 | M21: 480 | N21: 1450

Sheet SCurve (hidden)
B9: Customer | C9: DELL
B10: Revenue / Sale | C10: 20
B11: Cost / Call | C11: 2
E12: ($1000s) | G12: ($1000s) | H12: ($1000s)
B13: Multiple | C13: Number of Calls | D13: Unit Sales | E13: Estimated Profit | G13: Calculated Profit | H13: Error | J13: Parameters
B14: 0.1 | C14: =B14*NumCalls -> 31.8 | D14: 500 | E14: =(CustRev*D14-CustCost*C14)/1000 -> 9.9364 | G14: =(Aparam+((Bparam-Aparam)*C14^Cparam)/(Dparam+C14^Cparam))/1000 -> 9.056095141 | H14: =(E14-G14)^2 -> 0.7749366441 | J14: a | K14: 8716.186086
B15: 0.5 | C15: =B15*NumCalls -> 159 | D15: 850 | E15: =(CustRev*D15-CustCost*C15)/1000 -> 16.682 | G15: =(Aparam+((Bparam-Aparam)*C15^Cparam)/(Dparam+C15^Cparam))/1000 -> 17.19141973 | H15: =(E15-G15)^2 -> 0.2595084566 | J15: b | K15: 83414.45415
B16: -- | C16: 318 | D16: 1791 | E16: =(CustRev*D16-CustCost*C16)/1000 -> 35.184 | G16: =(Aparam+((Bparam-Aparam)*C16^Cparam)/(Dparam+C16^Cparam))/1000 -> 34.8302282 | H16: =(E16-G16)^2 -> 0.1251544847 | J16: c | K16: 2.070345875
B17: 1.5 | C17: =B17*NumCalls -> 477 | D17: 2600 | E17: =(CustRev*D17-CustCost*C17)/1000 -> 51.046 | G17: =(Aparam+((Bparam-Aparam)*C17^Cparam)/(Dparam+C17^Cparam))/1000 -> 50.13190507 | H17: =(E17-G17)^2 -> 0.835569536 | J17: d | K17: 282170.0097
B18: 10 | C18: =B18*NumCalls -> 3180 | D18: 4770 | E18: =(CustRev*D18-CustCost*C18)/1000 -> 89.04 | G18: =(Aparam+((Bparam-Aparam)*C18^Cparam)/(Dparam+C18^Cparam))/1000 -> 82.25094979 | H18: =(E18-G18)^2 -> 46.09120276
G19: Minimize SSE | H19: =SUM(H14:H18) -> 48.08637188

Sheet Optimize (hidden)
B12: Upper Bound on Total Number of Calls
B15: Customer | C15: Lower Bound | D15: Number of Calls | E15: Upper Bound | F15: Unit Sales | G15: Profit / Sale | H15: Cost / Call | I15: Total Profit
B16: 1
B17: 2
B18: 3
B19: 4
B20: 5
B21: 6
D23: =SUM(CallsDV) -> 0 | I23: =SUM($I$16:$I$17) -> 0

Sheet TradeOff (hidden)
B9: Varrying Upper Bound on Total Number of Calls
B10: Min | C10: Max | D10: Step Size
B13: Upper Bound on Total Number of Calls | C13: Total Overall Revenue
D16: 1.072502
D17: 1.072502
D18: 1.072502
D19: 1.072502
D20: 1.072502
D21: 0
D22: 0 | I22: 0
D23: 0 | I23: 0
